fUSD/lending_fUSD_20251012
["ID","MTS","AMOUNT","RATE_DAILY","PERIOD"]
[391065195,1760298632172,-1000.0,0.00022637,2]
[391065196,1760298632181,-1000.0,0.00022637,2]
[391065197,1760298632190,-1000.0,0.00022637,2]
[391065198,1760298632199,-1000.0,0.00022637,2]
[391065199,1760298632207,-1000.0,0.00022637,2]
[391065200,1760298632216,-1000.0,0.00022637,2]
[391065201,1760298632224,-1000.0,0.00022637,2]
[391065202,1760298632233,-1000.0,0.00022637,2]
[391065203,1760298632242,-22107.34,0.0002265,2]
[391065204,1760298632251,-500.0,0.000227,2]
[391065205,1760298632260,-500.0,0.000227,2]
[391065206,1760298632270,-200.0,0.00022717,2]
[391065207,1760298632278,-664.548788,0.00022752,2]
[391065208,1760298632287,-500.0,0.00022785,2]
[391065209,1760298632296,-666.0,0.00022826,3]
[391065210,1760298632304,-2969.02490332,0.00022941,2]
[391065211,1760298632316,-2030.97509668,0.00022941,2]
[391065212,1760298632325,-400.0,0.00023,2]
[391065213,1760298632334,-4000.0,0.00023041,2]
[391065214,1760298632343,-250.0,0.00023231,2]
[391065215,1760298632351,-2545.0,0.00023412,2]
[391065216,1760298632360,-460.2,0.00023544,15]
[391065217,1760298632368,-152.34,0.00023544,2]
[391065218,1760298632377,-2303.89,0.00023623,2]
[391065219,1760298632386,-311.71377876,0.00023762,2]
[391065220,1760298632398,-163.5679196,0.00023762,2]
[391065221,1760298632407,-837.38182329,0.00023911,2]
[391065222,1760298632418,-1008.91817671,0.00023911,2]
[391065223,1760298632427,-250.0,0.00023943,7]
[391065224,1760298632436,-494.328,0.00023956,5]
[391065225,1760298632444,-300.0,0.00024045,2]
[391065226,1760298632453,-190.43,0.00024131,2]
[391065227,1760298632461,-511.21776435,0.00024209,2]
[391065228,1760298632470,-505.0,0.00024397,2]
[391065229,1760298632479,-32915.08286715,0.00024411,2]
[391065230,1760298632487,-823.0,0.00024444,2]
[391065231,1760298632496,-442.0,0.000247,2]
[391065232,1760298632505,-500.0,0.00024799,2]
[391065233,1760298632513,-200.0,0.000248,2]
[391065234,1760298632523,-1000.0,0.00024858,2]
[391065235,1760298632532,-993.60912688,0.00024891,2]
[391065236,1760298632546,-450.0,0.00025,2]
[391065237,1760298632555,-1022.38,0.00025,2]
[391065238,1760298632563,-500.0,0.0002525,2]
[391065239,1760298632572,-500.0,0.0002525,2]
[391065240,1760298632583,-165.0,0.00025358,7]
[391065241,1760298632591,-582.0,0.00025373,7]
[391065242,1760298632600,-2208.68293954,0.00025396,2]
[391065243,1760298632610,-300.0,0.00025415,2]
[391065244,1760298632619,-1022.38,0.000255,2]
[391065245,1760298632628,-500.0,0.00025586,2]
[391065246,1760298632637,-1000.0,0.0002579,2]
[391065247,1760298632647,-1022.38,0.00026,30]
[391065248,1760298632656,-281.14932967,0.00026061,2]
[391065249,1760298632665,-161.89818843,0.00026061,2]
[391065250,1760298632674,-164.25455924,0.00026061,2]
[391065251,1760298632682,-48256.86281458,0.00026151,3]
[391065252,1760298632694,-425.25589543,0.00026151,3]
[391065253,1760298632705,-389.23946409,0.00026151,3]
[391065254,1760298632715,-1339.6,0.00026151,3]
[391065261,1760298637779,-345.43401,0.00023544,15]
[391065262,1760298637788,-285.869,0.00025274,2]
[391065263,1760298637797,-1079.46681384,0.00026052,2]
[391065264,1760298637806,-3698.64212876,0.00026151,3]
[391065265,1760298637817,-24184.35436884,0.00026151,3]
[391065266,1760298637826,-475.28169836,0.00026151,3]
[391065267,1760298637835,-35540.4639324,0.00026161,7]
[391065268,1760298637846,-20185.06424166,0.00026161,7]
[391065269,1760298637857,-165420.0,0.00026161,7]
[391065270,1760298637871,-60.21182594,0.00026161,7]
[391065271,1760298637880,-475.28169836,0.00026161,7]
[391065272,1760298637889,-500.0,0.00026173,2]
[391065273,1760298637899,-146.09889908,0.00026412,2]
[391065274,1760298637910,-2398.90110092,0.00026412,2]
[391065275,1760298637919,-161.8981884,0.00026497,2]
[391065276,1760298637928,-1022.38,0.000265,30]
[391065277,1760298637937,-39146.9773359,0.00026523,3]
[391065278,1760298637946,-475.28169836,0.00026523,3]
[391065279,1760298637955,-165.0,0.00026625,7]
[391065280,1760298637964,-1152.0,0.00026648,2]
[391065281,1760298637973,-420.72,0.00026676,2]
[391065282,1760298637982,-1000.0,0.00026722,2]
[391065283,1760298637991,-200.0,0.00026863,2]
[391065284,1760298638000,-475.28169836,0.000269,7]
[391065285,1760298638009,-475.28169836,0.000269,3]
[391065286,1760298638017,-161.8981884,0.00026933,2]
[391065287,1760298638026,-203.78302889,0.00026976,4]
[391065288,1760298638035,-500.0,0.00027,2]
[391065289,1760298638044,-1022.38,0.00027,30]
[391065290,1760298638053,-579.0,0.00027064,7]
[391065291,1760298638062,-164.25455922,0.00027079,2]
[391065292,1760298638070,-5000.0,0.000272,2]
[391065293,1760298638079,-500.0,0.0002722,2]
[391065294,1760298638089,-500.0,0.0002722,2]
[391065296,1760298638098,-502.95284391,0.0002722,2]
[391065298,1760298638107,-500.0,0.0002722,2]
[391065299,1760298638116,-500.0,0.0002722,2]
[391065300,1760298638125,-22.00965927,0.0002722,2]
[391065301,1760298638136,-304.32169075,0.0002722,2]
[391065302,1760298638147,-173.66864998,0.0002722,2]
[391065303,1760298638156,-529.10196755,0.0002722,2]
[391065304,1760298638165,-261.32532841,0.0002722,2]
[391065305,1760298638175,-238.67467159,0.0002722,2]
[391065306,1760298638185,-500.0,0.0002722,2]
[391065307,1760298638194,-500.0,0.0002722,2]
[391065309,1760298638202,-200.0,0.000273,2]
[391065311,1760298638211,-161.8981884,0.00027369,2]
[391065312,1760298638219,-160.2919913,0.00027373,2]
[391065313,1760298638228,-160.22566029,0.00027373,2]
[391065314,1760298638237,-500.30808081,0.00027373,2]
[391065315,1760298638246,-500.0,0.00027373,2]
[391065316,1760298638255,-160.30134849,0.00027373,2]
[391065317,1760298638264,-5516.50240046,0.00027377,3]
[391065318,1760298638275,-3997.13546623,0.00027377,3]
[391065324,1760298639664,-272.78791185,0.00027377,3]
[391065325,1760298639719,-29360.55155736,0.00027377,3]
[391065326,1760298639729,-190.6515,0.00027386,2]
[391065327,1760298639738,-849.01597864,0.00027387,3]
[391065328,1760298639749,-3928.03991876,0.00027387,3]
[391065329,1760298639773,-13978.1736,0.00027387,3]
[391065330,1760298639828,-14377.9529203,0.00027387,3]
[391065331,1760298639839,-2337.8,0.00027387,3]
[391065332,1760298639850,-3553.88000002,0.00027387,3]
[391065333,1760298639861,-122.11491818,0.00027387,3]
[391065334,1760298639870,-2089.27058376,0.00027387,3]
[391065335,1760298639881,-4861.8272399,0.00027387,3]
[391065336,1760298639892,-2407.32,0.00027387,3]
[391065337,1760298639937,-5633.21078864,0.00027387,3]
[391065338,1760298639946,-2998.32572246,0.00027387,3]
[391065339,1760298639954,-1000.0,0.00027396,13]
[391065340,1760298639963,-1132.71,0.00027397,7]
[391065341,1760298639971,-500.0,0.00027397,2]
[391065342,1760298639980,-500.0,0.00027397,2]
[391065343,1760298639988,-500.0,0.00027397,2]
[391065344,1760298639997,-500.0,0.00027397,2]
[391065345,1760298640006,-500.0,0.00027397,2]
[391065346,1760298640014,-500.0,0.00027397,2]
[391065347,1760298640023,-500.0,0.00027397,2]
[391065348,1760298640032,-500.0,0.00027397,2]
[391065349,1760298640040,-500.0,0.00027397,2]
[391065350,1760298640049,-500.0,0.00027397,2]
[391065351,1760298640058,-500.0,0.00027397,2]
[391065352,1760298640067,-500.0,0.00027397,2]
[391065353,1760298640078,-278.429089,0.00027397,2]
[391065354,1760298640096,-179.21924789,0.00027397,2]
[391065355,1760298640107,-400.0,0.00027397,2]
[391065356,1760298640118,-583.88075211,0.00027397,2]
[391065357,1760298640126,-618.70242481,0.00027397,2]
[391065358,1760298640137,-544.39757519,0.00027397,2]
[391065359,1760298640146,-1163.1,0.00027397,2]
[391065360,1760298640156,-1163.1,0.00027397,2]
[391065362,1760298640165,-740.63689361,0.00027397,2]
[391065385,1760298642946,-229.5,0.00023544,15]
[391065387,1760298642955,-214.05554184,0.0002616,2]
[391065389,1760298642965,-1079.4668138,0.00026392,2]
[391065391,1760298642974,-422.46310639,0.00027397,2]
[391065394,1760298642984,-56.51453797,0.00027397,2]
[391065396,1760298643002,-1106.58546203,0.00027397,2]
[391065397,1760298643011,-1163.1,0.00027397,2]
[391065398,1760298643021,-1163.1,0.00027397,2]
[391065399,1760298643030,-1163.1,0.00027397,2]
[391065400,1760298643040,-1163.1,0.00027397,2]
[391065401,1760298643049,-1163.1,0.00027397,2]
[391065402,1760298643058,-1163.1,0.00027397,2]
[391065403,1760298643067,-1163.1,0.00027397,2]
[391065404,1760298643310,-811.71453797,0.00027397,2]
[391065405,1760298643322,-351.38546203,0.00027397,2]
[391065406,1760298643332,-1163.1,0.00027397,2]
[391065407,1760298643340,-1163.1,0.00027397,2]
[391065408,1760298643349,-1163.1,0.00027397,2]
[391065409,1760298643359,-1163.1,0.00027397,2]
[391065410,1760298643367,-1163.1,0.00027397,2]
[391065411,1760298643377,-1163.1,0.00027397,2]
[391065412,1760298643386,-1163.1,0.00027397,2]
[391065413,1760298643395,-1163.1,0.00027397,2]
[391065414,1760298643405,-1163.1,0.00027397,2]
[391065415,1760298643414,-1163.31839173,0.00027397,2]
[391065416,1760298643424,-500.0,0.00027397,2]
[391065417,1760298643433,-500.0,0.00027397,2]
[391065418,1760298643442,-500.0,0.00027397,2]
[391065419,1760298643451,-500.0,0.00027397,2]
[391065420,1760298643460,-500.0,0.00027397,2]
[391065421,1760298643470,-500.0,0.00027397,2]
[391065422,1760298643479,-500.0,0.00027397,2]
[391065423,1760298643501,-500.0,0.00027397,2]
[391065424,1760298643510,-500.0,0.00027397,2]
[391065425,1760298643519,-500.0,0.00027397,2]
[391065426,1760298643529,-500.0,0.00027397,2]
[391065428,1760298643542,-500.0,0.00027397,2]
[391065430,1760298643551,-514.66860459,0.00027397,2]
[391065432,1760298643560,-1485.58,0.00027397,2]
[391065434,1760298643569,-1485.58,0.00027397,2]
[391065436,1760298643579,-142.38641665,0.00027397,2]
[391065439,1760298643591,-1343.19358335,0.00027397,2]
[391065442,1760298643600,-1485.58,0.00027397,2]
[391065445,1760298643612,-1485.58,0.00027397,2]
[391065447,1760298643622,-1485.58,0.00027397,2]
[391065450,1760298643632,-1485.58,0.00027397,2]
[391065453,1760298643641,-1485.58,0.00027397,2]
[391065455,1760298643651,-1485.58,0.00027397,2]
[391065457,1760298643660,-1485.58,0.00027397,2]
[391065459,1760298643669,-1485.58,0.00027397,2]
[391065461,1760298643678,-1485.58,0.00027397,2]
[391065463,1760298643687,-1485.58,0.00027397,2]
[391065465,1760298643696,-1485.58,0.00027397,2]
[391065467,1760298643705,-1485.58,0.00027397,2]
[391065469,1760298643714,-1485.58,0.00027397,2]
[391065471,1760298643723,-1485.58,0.00027397,2]
[391065473,1760298643732,-1485.58,0.00027397,2]
[391065475,1760298643741,-1485.58,0.00027397,2]
[391065477,1760298643750,-1485.58,0.00027397,2]
[391065479,1760298643759,-1485.58,0.00027397,2]
[391065481,1760298643768,-1485.58,0.00027397,2]
[391065483,1760298643777,-1485.58,0.00027397,2]
[391065485,1760298643786,-1485.78998776,0.00027397,2]
[391065487,1760298643795,-500.0,0.00027397,2]
[391065489,1760298643804,-300.0,0.00027397,2]
[391065491,1760298643813,-300.0,0.00027397,2]
[391065493,1760298643822,-300.0,0.00027397,2]
[391065495,1760298643831,-300.0,0.00027397,2]
[391065497,1760298643840,-300.0,0.00027397,2]
[391065499,1760298643850,-300.0,0.00027397,2]
[391065501,1760298643859,-300.0,0.00027397,2]
[391065503,1760298643868,-300.0,0.00027397,2]
[391065504,1760298643877,-300.0,0.00027397,2]
[391065505,1760298643886,-183.7352995,0.00027397,2]
[391065506,1760298643895,-500.0,0.00027397,4]
[391065507,1760298643904,-500.0,0.00027397,4]
[391065508,1760298643913,-500.0,0.00027397,4]
[391065509,1760298643922,-500.0,0.00027397,4]
[391065510,1760298643931,-210.17808521,0.00027397,4]
[391065511,1760298643940,-500.0,0.00027397,2]
[391065512,1760298643949,-519.00164979,0.00027397,2]
[391065513,1760298643958,-600.0,0.00027397,2]
[391065514,1760298643966,-1500.0,0.00027397,16]
[391065515,1760298643975,-942.67452189,0.00027397,2]
[391065516,1760298643984,-2000.0,0.000274,2]
[391065517,1760298643993,-161.4541239,0.000274,5]
[391065518,1760298644002,-1022.38,0.000275,30]
[391065519,1760298644011,-200.0,0.00027573,2]
[391065520,1760298644020,-1000.0,0.00027654,2]
[391065521,1760298644029,-1000.0,0.00027768,5]
[391065522,1760298644038,-917.7730229,0.00027768,5]
[391065523,1760298644047,-1000.0,0.00027768,5]
[391065524,1760298644056,-1000.0,0.00027768,5]
[391065525,1760298644066,-1000.0,0.00027768,5]
[391065526,1760298644075,-1000.0,0.00027768,5]
[391065527,1760298644083,-529.17781273,0.00027768,5]
[391065528,1760298644092,-1000.0,0.00027768,5]
[391065529,1760298644101,-475.28169836,0.000278,7]
[391065530,1760298644110,-161.8981884,0.00027806,2]
[391065531,1760298644120,-200.0,0.00027849,2]
[391065532,1760298644128,-415.09865477,0.00027921,5]
[391065533,1760298644138,-600.0,0.00027945,2]
[391065534,1760298644147,-2998.32572246,0.00027963,3]
[391065535,1760298644157,-2287.62423898,0.0002797,3]
[391065536,1760298644170,-36859.35309692,0.0002797,3]
[391065537,1760298644179,-11993.3028898,0.0002797,3]
[391065538,1760298644188,-5996.65144492,0.0002798,3]
[391065539,1760298644197,-181.4033318,0.00027989,2]
[391065540,1760298644206,-503.9647264,0.00027989,2]
[391065541,1760298644216,-159.84135149,0.00027989,2]
[391065542,1760298644225,-509.2642133,0.00027989,2]
[391065543,1760298644234,-2296.21894537,0.0002799,3]
[391065544,1760298644245,-36850.75839053,0.0002799,3]
[391065545,1760298644255,-11993.3028898,0.0002799,3]
[391065546,1760298644264,-5996.65144492,0.0002799,3]
[391065547,1760298644273,-45358.52136753,0.00028,8]
[391065548,1760298644282,-19484.76590732,0.00028,2]
[391065549,1760298644293,-1616.13556112,0.00028,2]
[391065550,1760298644303,-8899.09853156,0.00028,2]
[391065551,1760298644312,-1022.38,0.00028,30]
[391065552,1760298644322,-152.0,0.0002801,3]
[391065553,1760298644331,-39146.9773359,0.00028056,3]
[391065554,1760298644340,-2998.32572246,0.00028056,3]
[391065555,1760298644349,-164.25455922,0.00028096,2]
[391065556,1760298644359,-200.0,0.00028127,2]
[391065557,1760298644368,-575.82697,0.0002818,2]
[391065558,1760298644377,-161.8981884,0.00028242,2]
[391065559,1760298644386,-534.03,0.00028274,2]
[391065560,1760298644395,-150.88,0.00028274,2]
[391065561,1760298644405,-1500.0,0.00028316,5]
[391065562,1760298644414,-1277.69687419,0.00028316,5]
[391065563,1760298644424,-1002.74965189,0.00028316,5]
[391065564,1760298644433,-1500.0,0.00028316,5]
[391065565,1760298644443,-1500.0,0.00028316,5]
[391065566,1760298644451,-1500.0,0.00028316,5]
[391065567,1760298644461,-500.0,0.00028388,2]
[391065568,1760298644471,-200.0,0.00028408,2]
[391065569,1760298644480,-600.0,0.00028493,2]
[391065570,1760298644489,-500.0,0.00028494,2]
[391065571,1760298644498,-1022.38,0.000285,30]
[391065572,1760298644507,-2998.32572246,0.00028511,3]
[391065573,1760298644516,-1000.0,0.00028587,2]
[391065574,1760298644525,-39146.9773359,0.0002865,3]
[391065575,1760298644536,-11993.3028898,0.0002865,3]
[391065576,1760298644551,-5996.65144492,0.0002866,3]
[391065577,1760298644561,-39146.9773359,0.0002867,3]
[391065578,1760298644570,-14991.6286123,0.0002867,3]
[391065579,1760298644579,-500.0,0.00028673,5]
[391065580,1760298644588,-500.0,0.00028673,5]
[391065581,1760298644599,-531.01416716,0.00028673,5]
[391065582,1760298644608,-161.8981884,0.00028678,2]
[391065583,1760298644619,-59584.98317151,0.0002868,2]
[391065584,1760298644628,-5996.65144492,0.00028747,3]
[391065585,1760298644637,-579.0,0.00028756,14]
[391065586,1760298644646,-38014.0918531,0.00028757,3]
[391065587,1760298644659,-1132.8854828,0.00028757,3]
[391065588,1760298644667,-91.61682247,0.00028757,3]
[391065589,1760298644678,-1171.3,0.00028757,3]
[391065590,1760298644689,-1174.10913955,0.00028757,3]
[391065591,1760298644699,-561.29976044,0.00028757,3]
[391065592,1760298644709,-150.0,0.00028767,2]
[391065593,1760298644718,-500.0,0.00028767,2]
[391065594,1760298644727,-500.0,0.00028767,2]
[391065595,1760298644736,-500.0,0.00028767,2]
[391065596,1760298644744,-500.0,0.00028767,2]
[391065597,1760298644753,-150.35467729,0.00028767,2]
[391065598,1760298644762,-500.0,0.00028767,2]
[391065599,1760298644771,-500.0,0.00028767,2]
[391065600,1760298644780,-150.0,0.00028767,2]
[391065601,1760298644789,-277.69548432,0.00028767,2]
[391065606,1760298645689,-222.30451568,0.00028767,2]
[391065607,1760298645699,-249.42341481,0.00028767,2]
[391065608,1760298645708,-500.0,0.00028767,2]
[391065609,1760298645718,-500.0,0.00028767,2]
[391065610,1760298645727,-500.0,0.00028767,2]
[391065611,1760298645736,-500.0,0.00028767,2]
[391065612,1760298645746,-500.0,0.00028767,2]
[391065613,1760298645755,-193.39337646,0.00028767,2]
[391065614,1760298645764,-179.97359304,0.00028767,2]
[391065615,1760298645849,-1079.4668138,0.00026732,2]
[391065616,1760298645858,-320.02640696,0.00028767,2]
[391065617,1760298645867,-500.0,0.00028767,2]
[391065618,1760298645876,-500.0,0.00028767,2]
[391065619,1760298645885,-300.0,0.00028767,2]
[391065620,1760298645894,-500.0,0.00028767,2]
[391065621,1760298645904,-500.0,0.00028767,2]
[391065622,1760298645913,-200.0,0.00028767,2]
[391065623,1760298645922,-150.0,0.00028767,2]
[391065624,1760298645931,-150.0,0.00028767,2]
[391065625,1760298645940,-500.0,0.00028767,2]
[391065626,1760298645950,-500.0,0.00028767,2]
[391065627,1760298645959,-500.0,0.00028767,2]
[391065628,1760298645968,-2998.32572246,0.00028812,3]
[391065629,1760298645977,-150.0,0.00028822,2]
[391065630,1760298645986,-500.0,0.00028822,2]
[391065631,1760298645995,-500.0,0.00028822,2]
[391065632,1760298646004,-500.0,0.00028822,2]
[391065633,1760298646013,-500.0,0.00028822,2]
[391065634,1760298646022,-500.0,0.00028822,2]
[391065635,1760298646031,-500.0,0.00028822,2]
[391065636,1760298646040,-150.0,0.00028822,2]
[391065637,1760298646049,-500.0,0.00028822,2]
[391065638,1760298646058,-500.0,0.00028822,2]
[391065640,1760298646067,-500.0,0.00028822,2]
[391065642,1760298646076,-500.0,0.00028822,2]
[391065644,1760298646085,-300.0,0.00028822,2]
[391065646,1760298646095,-500.0,0.00028822,2]
[391065648,1760298646104,-500.0,0.00028822,2]
[391065650,1760298646112,-150.0,0.00028822,2]
[391065653,1760298646121,-150.0,0.00028822,2]
[391065656,1760298646130,-537.96483594,0.00028822,2]
[391065658,1760298646139,-500.0,0.00028822,2]
[391065662,1760298646149,-500.0,0.00028822,2]
[391065664,1760298646159,-2998.32572246,0.00028823,3]
[391065666,1760298646168,-150.0,0.00028835,2]
[391065668,1760298646177,-175.87,0.0002886,2]
[391065670,1760298646186,-546.15,0.0002886,2]
[391065673,1760298646195,-2000.0,0.00028864,5]
[391065675,1760298646204,-1342.42733138,0.00028864,5]
[391065677,1760298646214,-2000.0,0.00028864,5]
[391065679,1760298646223,-2000.0,0.00028864,5]
[391065681,1760298646231,-150.0,0.00028877,2]
[391065683,1760298646241,-500.0,0.00028877,2]
[391065685,1760298646250,-500.0,0.00028877,2]
[391065687,1760298646259,-500.0,0.00028877,2]
[391065688,1760298646268,-500.0,0.00028877,2]
[391065689,1760298646277,-500.0,0.00028877,2]
[391065690,1760298646286,-500.0,0.00028877,2]
[391065691,1760298646295,-150.0,0.00028877,2]
[391065692,1760298646304,-500.0,0.00028877,2]
[391065693,1760298646313,-354.77747017,0.00028877,2]
[391065694,1760298646323,-500.0,0.00028877,2]
[391065695,1760298646332,-250.5645471,0.00028877,2]
[391065696,1760298646341,-300.0,0.00028877,2]
[391065697,1760298646350,-500.0,0.00028877,2]
[391065698,1760298646359,-500.0,0.00028877,2]
[391065699,1760298646368,-172.76802236,0.00028877,2]
[391065700,1760298646377,-150.0,0.00028877,2]
[391065701,1760298646386,-500.0,0.00028877,2]
[391065702,1760298646396,-601.45677538,0.00028877,2]
[391065703,1760298646406,-2391.27225554,0.00028911,3]
[391065704,1760298646422,-1613.60969007,0.00028911,3]
[391065705,1760298646434,-704.2399998,0.00028911,3]
[391065717,1760299097881,-150.0,0.00015,2]
[391065718,1760299097905,-214.3,0.00015,2]
[391065723,1760299362145,150.0,0.00015,2]
[391065736,1760299831862,-150.0,0.00016966,2]
[391065737,1760299831873,-250.0,0.00017,2]
[391065738,1760299831885,-2545.0,0.00017836,2]
[391065739,1760299831894,-300.0,0.00019,2]
[391065740,1760299831904,-500.0,0.00019507,2]
[391065741,1760299831915,-180.94993147,0.00020384,2]
[391065742,1760299831925,-1250.0,0.00020736,2]
[391065743,1760299831934,-2545.0,0.00020836,2]
[391065744,1760299831943,-1285.40257851,0.00021297,2]
[391065745,1760299831956,-9375.0,0.00021297,2]
[391065746,1760299831969,-6949.84026612,0.00021297,2]
[391065747,1760299831978,-475.28169836,0.00021989,2]
[391065748,1760299831987,-300.0,0.00022026,2]
[391065749,1760299831996,-211.0,0.00022026,2]
[391065750,1760299832006,-300.0,0.00022026,2]
[391065751,1760299832015,-1200.0,0.00022026,2]
[391065752,1760299832025,-1097.11025964,0.00022027,2]
[391065753,1760299832035,-3787.18,0.00022027,2]
[391065754,1760299832044,-388.88,0.00022027,2]
[391065755,1760299832054,-150.99,0.00022027,2]
[391065756,1760299832063,-150.99,0.00022027,2]
[391065757,1760299832073,-2194.22051929,0.00022685,2]
[391065758,1760299832083,-481.0,0.00023,7]
[391065759,1760299832092,-481.0,0.00023288,7]
[391065760,1760299832102,-3291.33077893,0.00023342,2]
[391065761,1760299832111,-316.58,0.00023479,15]
[391065762,1760299832120,-151.54,0.00023544,2]
[391065763,1760299832129,-73.05647766,0.00023544,2]
[391065764,1760299832141,-78.60352234,0.00023544,2]
[391065765,1760299832150,-152.52,0.00023544,2]
[391065766,1760299832159,-1250.0,0.00023563,3]
[391065767,1760299832168,-230.03101956,0.00023662,2]
[391065772,1760299832279,-14.96898044,0.00023662,2]
[391065774,1760299832288,-30.92485166,0.00023687,2]
[391065776,1760299832300,-1290.67514834,0.00023687,2]
[391065778,1760299832311,-7369.00142329,0.00023771,2]
[391065781,1760299832330,-1842.34656656,0.00023771,2]
[391065783,1760299832339,-151.0,0.00023771,2]
[391065785,1760299832349,-151.0,0.00023771,2]
[391065787,1760299832358,-151.0,0.00023771,2]
[391065789,1760299832368,-246.16406506,0.00023771,2]
[391065791,1760299832377,-248.71531821,0.00023771,2]
[391065793,1760299832387,-2000.0,0.000238,2]
[391065795,1760299832397,-2022.5427331,0.00023826,2]
[391065797,1760299832406,-2545.0,0.00023836,2]
[391065799,1760299832415,-420.0,0.00023935,2]
[391065803,1760299832425,-420.0,0.00023935,2]
[391065804,1760299832435,-1825.93131703,0.00024,2]
[391065807,1760299832447,-401.17419661,0.00024,2]
[391065809,1760299832458,-2161.33552494,0.00024,2]
[391065811,1760299832468,-395.463,0.00024012,5]
[391065813,1760299832478,-1172.0,0.00024047,2]
[391065815,1760299832487,-481.0,0.00024164,7]
[391065817,1760299832496,-506.0,0.00024397,2]
[391065819,1760299832505,-5485.55129823,0.00024657,2]
[391065821,1760299832515,-1000.0,0.00024658,2]
[391065823,1760299832523,-921.18,0.00024658,2]
[391065825,1760299832532,-151.0,0.00024739,2]
[391065827,1760299832541,-264.4478428,0.00024739,2]
[391065829,1760299832550,-200.0,0.00024739,2]
[391065830,1760299832559,-326.60246086,0.00024739,2]
[391065833,1760299832569,-500.0,0.00024739,2]
[391065835,1760299832578,-500.0,0.00024739,2]
[391065836,1760299832587,-500.0,0.00024739,2]
[391065839,1760299832597,-500.0,0.00024739,2]
[391065840,1760299832606,-646.65982734,0.00024739,2]
[391065842,1760299832615,-200.0,0.00024739,2]
[391065844,1760299832624,-500.0,0.00024739,2]
[391065846,1760299832633,-500.0,0.00024739,2]
[391065848,1760299832642,-500.0,0.00024739,2]
[391065851,1760299832652,-500.0,0.00024739,2]
[391065853,1760299832661,-500.0,0.00024739,2]
[391065854,1760299832670,-500.0,0.00024739,2]
[391065856,1760299832679,-500.0,0.00024739,2]
[391065858,1760299832688,-500.0,0.00024739,2]
[391065860,1760299832697,-500.0,0.00024739,2]
[391065862,1760299832706,-500.0,0.00024739,2]
[391065864,1760299832716,-500.0,0.00024739,2]
[391065866,1760299832725,-500.0,0.00024739,2]
[391065868,1760299832734,-500.0,0.00024739,2]
[391065870,1760299832743,-500.0,0.00024739,2]
[391065872,1760299832753,-151.0,0.00024739,2]
[391065874,1760299832762,-500.0,0.00024739,2]
[391065876,1760299832770,-337.32838914,0.00024739,2]
[391065878,1760299832779,-151.0,0.00024739,2]
[391065880,1760299832788,-151.0,0.00024739,2]
[391065882,1760299832797,-151.0,0.00024739,2]
[391065884,1760299832807,-151.0,0.00024739,2]
[391065886,1760299832816,-151.0,0.00024739,2]
[391065888,1760299832825,-1000.0,0.00024739,2]
[391065890,1760299832834,-200.0,0.00024739,2]
[391065892,1760299832843,-500.0,0.00024739,2]
[391065894,1760299832852,-151.0,0.00024739,2]
[391065896,1760299832861,-1000.0,0.00024739,2]
[391065918,1760299832870,-500.0,0.00024739,2]
[391065919,1760299833140,-151.0,0.00024739,2]
[391065920,1760299833150,-1000.0,0.00024739,2]
[391065921,1760299833159,-1000.0,0.00024739,2]
[391065922,1760299833169,-500.0,0.00024739,2]
[391065923,1760299833179,-151.0,0.00024739,2]
[391065924,1760299833188,-1000.0,0.00024739,2]
[391065925,1760299833198,-1000.0,0.00024739,2]